fUST/lending_fUST_20260109
["ID","MTS","AMOUNT","RATE_DAILY","PERIOD"]
[401109311,1767935446867,-246.61829749,0.00017246,2]
[401109312,1767935446877,-2681.0,0.00017246,2]
[401109313,1767935446886,-629.09707327,0.00017246,2]
[401109314,1767935446895,-500.0,0.00017246,2]
[401109315,1767935446904,-175.58637142,0.00017246,2]
[401109316,1767935446913,-151.25281158,0.00017246,2]
[401109317,1767935446922,-274.74001223,0.00017246,2]
[401109318,1767935446931,-151.38401694,0.00017246,2]
[401109319,1767935446940,-2400.0,0.0001726,2]
[401109320,1767935446950,-500.0,0.00017383,2]
[401109321,1767935446959,-181.41080608,0.00017383,2]
[401109322,1767935446968,-2681.0,0.00017383,2]
[401109323,1767935446978,-500.0,0.00017383,2]
[401109324,1767935446987,-205.84177285,0.00017383,2]
[401109325,1767935446996,-5000.0,0.00017412,2]
[401109326,1767935447005,-1152.0,0.00017426,2]
[401109327,1767935447015,-473.12877309,0.000175,2]
[401109328,1767935447024,-2400.0,0.00017508,2]
[401109329,1767935447034,-500.0,0.0001752,2]
[401109330,1767935447044,-2681.0,0.0001752,2]
[401109331,1767935447053,-500.0,0.0001752,2]
[401109332,1767935447063,-4000.0,0.00017534,2]
[401109333,1767935447072,-4000.0,0.00017534,2]
[401109334,1767935447082,-4000.0,0.00017534,2]
[401109335,1767935447092,-2242.77749232,0.00017656,2]
[401109336,1767935447101,-1995.04726907,0.00017656,2]
[401109337,1767935447110,-4500.0,0.00017656,2]
[401109338,1767935447120,-4500.0,0.00017656,2]
[401109339,1767935447129,-500.0,0.00017657,2]
[401109340,1767935447139,-2681.0,0.00017657,2]
[401109341,1767935447148,-277.92667681,0.00017657,2]
[401109342,1767935447157,-500.0,0.00017794,2]
[401109343,1767935447167,-2681.0,0.00017794,2]
[401109344,1767935447177,-400.0,0.00017842,2]
[401109345,1767935447186,-500.0,0.00017931,2]
[401109346,1767935447196,-2681.0,0.00017931,2]
[401109347,1767935447205,-1344.72420012,0.00018056,2]
[401109348,1767935447214,-420.9785477,0.00018068,2]
[401109349,1767935447223,-2681.0,0.00018068,2]
[401109350,1767935447232,-4500.0,0.00018082,2]
[401109351,1767935447241,-4500.0,0.00018082,2]
[401109352,1767935447252,-4500.0,0.00018082,2]
[401109353,1767935447261,-1417.01439994,0.00018204,2]
[401109354,1767935447270,-5000.0,0.00018204,2]
[401109355,1767935447279,-2681.0,0.00018205,2]
[401109356,1767935447288,-2681.0,0.00018342,2]
[401109357,1767935447297,-301.71202862,0.00018356,2]
[401109358,1767935447307,-2681.0,0.00018479,2]
[401109359,1767935447316,-2681.0,0.00018616,2]
[401109360,1767935447325,-5000.0,0.0001863,2]
[401109361,1767935447335,-5000.0,0.0001863,2]
[401109362,1767935447345,-5000.0,0.0001863,2]
[401109363,1767935447354,-1000.0,0.00018648,2]
[401109364,1767935447364,-244.0,0.00018648,2]
[401109365,1767935447373,-979.022557,0.00018648,2]
[401109366,1767935447382,-979.022557,0.00018648,2]
[401109367,1767935447391,-979.022557,0.00018648,2]
[401109368,1767935447400,-979.022557,0.00018648,2]
[401109369,1767935447409,-4805.2240103,0.00018681,2]
[401109370,1767935447418,-5500.0,0.00018752,2]
[401109371,1767935447426,-2681.0,0.00018753,2]
[401109372,1767935447435,-5000.0,0.00018863,2]
[401109373,1767935447445,-2681.0,0.0001889,2]
[401109374,1767935447455,-303.10001603,0.000189,2]
[401109375,1767935447464,-2681.0,0.00019027,2]
[401109376,1767935447473,-303.10001603,0.00019089,2]
[401109377,1767935447482,-1613.0,0.0001913,2]
[401109378,1767935447491,-2681.0,0.00019164,2]
[401109379,1767935447500,-419.868976,0.00019178,2]
[401109380,1767935447510,-419.868976,0.00019178,2]
[401109381,1767935447519,-419.868976,0.00019178,2]
[401109382,1767935447528,-419.868976,0.00019178,2]
[401109383,1767935447537,-353.0313,0.00019178,2]
[401109384,1767935447546,-221.941164,0.00019178,2]
[401109385,1767935447555,-221.941164,0.00019178,2]
[401109386,1767935447564,-221.941164,0.00019178,2]
[401109387,1767935447574,-221.941164,0.00019178,2]
[401109388,1767935447583,-151.0,0.00019178,2]
[401109389,1767935447592,-5500.0,0.00019178,2]
[401109390,1767935447602,-1918.97723055,0.00019178,2]
[401109391,1767935447611,-4878.11739551,0.00019178,2]
[401109392,1767935447620,-163.2,0.000192,2]
[401109393,1767935447629,-163.82,0.000192,2]
[401109394,1767935447638,-16429.49,0.000192,2]
[401109395,1767935447647,-1391.37,0.000192,2]
[401109396,1767935447656,-167.54,0.000192,2]
[401109397,1767935447666,-215.73943239,0.0001926,3]
[401109398,1767935447676,-303.45210152,0.00019278,2]
[401109399,1767935447685,-3715.4218359,0.000193,2]
[401109400,1767935447694,-3232.45700431,0.000193,2]
[401109401,1767935447703,-2681.0,0.00019301,2]
[401109402,1767935447712,-2681.0,0.00019438,2]
[401109403,1767935447826,-528.42953878,0.000195,2]
[401109404,1767935447836,-2681.0,0.00019575,2]
[401109405,1767935447847,-9388.79509089,0.00019684,2]
[401109406,1767935447857,-2681.0,0.00019712,2]
[401109407,1767935447867,-6000.0,0.00019726,2]
[401109408,1767935447876,-2699.0,0.00019849,2]
[401109409,1767935447886,-353.0313,0.0002,4]
[401109410,1767935447895,-6500.0,0.00020274,2]
[401109411,1767935447904,-619.25363932,0.0002028,11]
[401109412,1767935447914,-353.0313,0.00020411,5]
[401109413,1767935447923,-353.0313,0.00020411,5]
[401109414,1767935447932,-1000.0,0.00020512,2]
[401109415,1767935447942,-492.0,0.00020512,2]
[401109416,1767935447952,-151.0,0.00020519,2]
[401109417,1767935447963,-151.0,0.00020519,2]
[401109418,1767935447972,-186.239267,0.00020519,2]
[401109419,1767935447982,-186.239267,0.00020519,2]
[401109420,1767935447997,-186.239267,0.00020519,2]
[401109421,1767935448006,-186.239267,0.00020519,2]
[401109422,1767935448015,-1041.66666667,0.00020642,2]
[401109423,1767935448026,-7000.0,0.00020822,2]
[401109424,1767935448036,-350.1,0.00020867,2]
[401109425,1767935448045,-165.0,0.00020904,3]
[401109426,1767935448055,-2403.26771612,0.00020987,2]
[401109427,1767935448065,-2258.0,0.00021001,2]
[401109428,1767935448074,-619.25363932,0.0002126,13]
[401109429,1767935448083,-340.56,0.00021325,2]
[401109430,1767935448092,-2403.26771612,0.00021356,2]
[401109431,1767935448102,-7500.0,0.0002137,2]
[401109432,1767935448111,-583.73030446,0.000215,2]
[401109433,1767935448120,-2403.26771612,0.00021588,2]
[401109434,1767935448129,-1391.37,0.000217,2]
[401109435,1767935448138,-4805.2240103,0.00021741,2]
[401109436,1767935448148,-2403.26771612,0.00021916,2]
[401109437,1767935448158,-151.0,0.00021918,2]
[401109438,1767935448167,-213.664329,0.00021918,2]
[401109439,1767935448176,-151.0,0.00021918,2]
[401109440,1767935448185,-626.530657,0.00021918,2]
[401109441,1767935448195,-626.530657,0.00021918,2]
[401109442,1767935448203,-626.530657,0.00021918,2]
[401109443,1767935448218,-626.530657,0.00021918,2]
[401109444,1767935448227,-151.0,0.00021918,2]
[401109445,1767935448236,-151.0,0.00021918,2]
[401109446,1767935448245,-3684.236752,0.00021918,2]
[401109447,1767935448255,-3684.236752,0.00021918,2]
[401109448,1767935448265,-3684.236752,0.00021918,2]
[401109449,1767935448274,-3684.236752,0.00021918,2]
[401109450,1767935448283,-151.0,0.00021918,2]
[401109451,1767935448293,-244.441363,0.00021918,2]
[401109452,1767935448302,-151.0,0.00021918,2]
[401109453,1767935448311,-151.0,0.00021918,2]
[401109454,1767935448320,-189.33588,0.00021918,2]
[401109455,1767935448330,-189.33588,0.00021918,2]
[401109456,1767935448339,-189.33588,0.00021918,2]
[401109457,1767935448348,-189.33588,0.00021918,2]
[401109458,1767935448357,-313.573847,0.00021918,2]
[401109459,1767935448366,-313.573847,0.00021918,2]
[401109460,1767935448375,-313.573847,0.00021918,2]
[401109461,1767935448384,-313.573847,0.00021918,2]
[401109462,1767935448393,-151.0,0.00021918,2]
[401109463,1767935448402,-151.0,0.00021918,2]
[401109464,1767935448410,-498.400382,0.00021918,2]
[401109465,1767935448420,-498.400382,0.00021918,2]
[401109466,1767935448429,-498.400382,0.00021918,2]
[401109467,1767935448437,-498.400382,0.00021918,2]
[401109468,1767935448446,-151.0,0.00021918,2]
[401109469,1767935448455,-151.0,0.00021918,2]
[401109470,1767935448464,-163.657676,0.00021918,2]
[401109471,1767935448475,-163.657676,0.00021918,2]
[401109472,1767935448485,-163.657676,0.00021918,2]
[401109473,1767935448494,-163.657676,0.00021918,2]
[401109474,1767935448503,-151.0,0.00021918,2]
[401109475,1767935448513,-199.159401,0.00021918,2]
[401109476,1767935448522,-199.159401,0.00021918,2]
[401109477,1767935448532,-199.159401,0.00021918,2]
[401109478,1767935448543,-151.0,0.00021918,2]
[401109479,1767935448554,-199.159401,0.00021918,2]
[401109480,1767935448563,-212.370924,0.00021918,2]
[401109481,1767935448573,-151.0,0.00021918,2]
[401109482,1767935448582,-151.0,0.00021918,2]
[401109483,1767935448591,-298.26848,0.00021918,2]
[401109484,1767935448600,-298.26848,0.00021918,2]
[401109485,1767935448609,-298.26848,0.00021918,2]
[401109486,1767935448619,-298.26848,0.00021918,2]
[401109487,1767935448628,-151.0,0.00021918,2]
[401109488,1767935448637,-151.0,0.00021918,2]
[401109489,1767935448648,-151.0,0.00021918,2]
[401109490,1767935448658,-151.0,0.00021918,2]
[401109491,1767935448668,-151.0,0.00021918,2]
[401109492,1767935448679,-607.260341,0.00021918,2]
[401109493,1767935448688,-607.260341,0.00021918,2]
[401109494,1767935448697,-607.260341,0.00021918,2]
[401109495,1767935448707,-607.260341,0.00021918,2]
[401109496,1767935448718,-3661.42549146,0.00021918,2]
[401109497,1767935448727,-2403.26771612,0.00021978,2]
[401109498,1767935448741,-350.1,0.0002199,2]
[401109499,1767935448751,-771.43,0.00022,2]
[401109500,1767935448760,-467.25,0.00022,7]
[401109501,1767935448769,-9388.79509089,0.00022179,2]
[401109502,1767935448779,-293.28,0.00022192,5]
[401109503,1767935448788,-174.01592446,0.00022206,2]
[401109504,1767935448798,-619.25363932,0.0002224,14]
[401109505,1767935448810,-16429.49,0.000223,2]
[401109506,1767935448819,-151.0,0.00022339,2]
[401109507,1767935448828,-151.0,0.00022339,2]
[401109508,1767935448837,-304.851021,0.00022339,2]
[401109509,1767935448846,-304.851021,0.00022339,2]
[401109510,1767935448855,-304.851021,0.00022339,2]
[401109511,1767935448865,-304.851021,0.00022339,2]
[401109512,1767935448874,-151.0,0.00022339,2]
[401109513,1767935448883,-1500.0,0.00022339,2]
[401109514,1767935448892,-30000.0,0.00022339,2]
[401109515,1767935448902,-151.0,0.00022339,2]
[401109516,1767935448911,-151.0,0.00022339,2]
[401109517,1767935448921,-151.0,0.00022339,2]
[401109518,1767935448930,-151.0,0.00022339,2]
[401109519,1767935448940,-478.75725327,0.00022339,2]
[401109520,1767935448949,-151.0,0.00022339,2]
[401109521,1767935448958,-151.0,0.00022339,2]
[401109522,1767935448967,-151.0,0.00022339,2]
[401109523,1767935448977,-151.0,0.00022339,2]
[401109524,1767935448986,-1500.0,0.00022339,2]
[401109525,1767935448995,-250.0,0.00022339,2]
[401109526,1767935449006,-151.0,0.00022339,2]
[401109527,1767935449026,-151.0,0.00022339,2]
[401109528,1767935449040,-1500.0,0.00022339,2]
[401109529,1767935449054,-250.0,0.00022339,2]
[401109530,1767935449065,-151.0,0.00022339,2]
[401109531,1767935449077,-1500.0,0.00022339,2]
[401109532,1767935449090,-151.0,0.00022339,2]
[401109533,1767935449103,-250.0,0.00022339,2]
[401109534,1767935449116,-151.0,0.00022339,2]
[401109535,1767935449129,-151.0,0.00022339,2]
[401109536,1767935449140,-151.0,0.00022339,2]
[401109537,1767935449153,-1500.0,0.00022339,2]
[401109538,1767935449167,-250.0,0.00022339,2]
[401109539,1767935449179,-151.0,0.00022339,2]
[401109540,1767935449191,-151.0,0.00022339,2]
[401109541,1767935449204,-1500.0,0.00022339,2]
[401109542,1767935449215,-151.0,0.00022339,2]
[401109543,1767935449228,-250.0,0.00022339,2]
[401109544,1767935449241,-151.0,0.00022339,2]
[401109545,1767935449254,-151.0,0.00022339,2]
[401109546,1767935449265,-1500.0,0.00022339,2]
[401109547,1767935449277,-151.0,0.00022339,2]
[401109548,1767935449290,-250.0,0.00022339,2]
[401109549,1767935449301,-250.0,0.00022339,2]
[401109550,1767935449314,-1500.0,0.00022339,2]
[401109551,1767935449330,-151.0,0.00022339,2]
[401109552,1767935449343,-151.0,0.00022339,2]
[401109553,1767935449357,-250.0,0.00022339,2]
[401109554,1767935449371,-250.0,0.00022339,2]
[401109555,1767935449386,-2312.83697232,0.00022339,2]
[401109556,1767935449401,-1500.0,0.00022339,2]
[401109557,1767935449413,-151.0,0.00022339,2]
[401109558,1767935449424,-151.0,0.00022339,2]
[401109559,1767935449435,-250.0,0.00022339,2]
[401109560,1767935449447,-250.0,0.00022339,2]
[401109561,1767935449462,-1500.0,0.00022339,2]
[401109562,1767935449477,-151.0,0.00022339,2]
[401109563,1767935449489,-151.0,0.00022339,2]
[401109564,1767935449502,-201.61280064,0.00022339,2]
[401109565,1767935449515,-250.0,0.00022339,2]
[401109566,1767935449527,-1500.0,0.00022339,2]
[401109567,1767935449539,-152.53645226,0.00022339,2]
[401109568,1767935449550,-151.0,0.00022339,2]
[401109569,1767935449562,-250.0,0.00022339,2]
[401109570,1767935449574,-1500.0,0.00022339,2]
[401109571,1767935449585,-151.0,0.00022339,2]
[401109572,1767935449596,-250.0,0.00022339,2]
[401109573,1767935449607,-1500.0,0.00022339,2]
[401109574,1767935449619,-151.0,0.00022339,2]
[401109575,1767935449629,-151.0,0.00022339,2]
[401109576,1767935449641,-1500.0,0.00022339,2]
[401109577,1767935449654,-151.0,0.00022339,2]
[401109578,1767935449666,-1500.0,0.00022339,2]
[401109579,1767935449676,-500.0,0.00022339,2]
[401109580,1767935449688,-151.0,0.00022339,2]
[401109581,1767935449698,-500.0,0.00022339,2]
[401109582,1767935449709,-500.0,0.00022339,2]
[401109583,1767935449719,-500.0,0.00022339,2]
[401109584,1767935449731,-500.0,0.00022339,2]
[401109585,1767935449746,-500.0,0.00022339,2]
[401109586,1767935449757,-500.0,0.00022339,2]
[401109587,1767935449767,-500.0,0.00022339,2]
[401109588,1767935449779,-500.0,0.00022339,2]
[401109589,1767935449791,-500.0,0.00022339,2]
[401109590,1767935449801,-500.0,0.00022339,2]
[401109591,1767935449814,-500.0,0.00022339,2]
[401109592,1767935449827,-500.0,0.00022339,2]
[401109593,1767935449839,-250.0,0.00022339,2]
[401109594,1767935449853,-250.0,0.00022339,2]
[401109595,1767935449865,-500.0,0.00022339,2]
[401109596,1767935449878,-151.0,0.00022339,2]
[401109597,1767935449890,-250.0,0.00022339,2]
[401109598,1767935449902,-250.0,0.00022339,2]
[401109599,1767935449914,-250.0,0.00022339,2]
[401109600,1767935449925,-2030.29667201,0.00022339,2]
[401109601,1767935449937,-250.0,0.00022339,2]
[401109602,1767935449948,-250.0,0.00022339,2]
[401109603,1767935449960,-250.0,0.00022339,2]
[401109604,1767935449971,-250.0,0.00022339,2]
[401109605,1767935449986,-250.0,0.00022339,2]
[401109606,1767935449997,-250.0,0.00022339,2]
[401109607,1767935450009,-250.0,0.00022339,2]
[401109608,1767935450020,-250.0,0.00022339,2]
[401109609,1767935450032,-250.0,0.00022339,2]
[401109610,1767935450043,-250.0,0.00022339,2]
[401109611,1767935450056,-250.0,0.00022339,2]
[401109612,1767935450069,-250.0,0.00022339,2]
[401109613,1767935450080,-250.0,0.00022339,2]
[401109614,1767935450091,-250.0,0.00022339,2]
[401109615,1767935450103,-264.83937598,0.00022339,2]
[401109616,1767935450115,-255.89504653,0.00022339,2]
[401109617,1767935450127,-800.0,0.00022341,2]
[401109618,1767935450139,-2403.26771612,0.00022402,2]
[401109619,1767935450150,-5000.0,0.00022413,2]
[401109620,1767935450161,-300.0,0.00022466,5]
[401109621,1767935450173,-2403.26771612,0.00022515,2]
[401109622,1767935450185,-166.0,0.00022548,7]
[401109623,1767935450197,-1000.0,0.00022564,10]
[401109624,1767935450208,-791.0,0.00022564,10]
[401109625,1767935450219,-812373.46328223,0.00022671,2]
[401109626,1767935450231,-300.0,0.0002274,5]
[401109627,1767935450243,-496.47127164,0.00022887,2]
[401109628,1767935450255,-2398.4119403,0.00022887,2]
[401109629,1767935450266,-295.16938961,0.00022887,2]
[401109630,1767935450277,-2403.26771612,0.00022911,2]
[401109631,1767935450289,-505.61439594,0.00023011,5]
[401109632,1767935450301,-2022.45758378,0.00023011,5]
[401109633,1767935450314,-146.85972008,0.00023011,5]
[401109634,1767935450940,-43.75720178,0.00023011,5]
[401109635,1767935450949,-762.46768745,0.00023011,5]
[401109636,1767935450958,-1715.55229675,0.00023011,5]
[401109637,1767935450969,-300.0,0.00023014,5]
[401109638,1767935450979,-1228.09281402,0.00023054,2]
[401109639,1767935450991,-950.13,0.00023054,2]
[401109640,1767935743526,500.0,0.00030136,120]
[401109641,1767935743760,500.0,0.00030136,120]
[401109642,1767935743997,500.0,0.00030136,120]
[401109643,1767935744230,369.15186997,0.00030136,120]
[401109644,1767936188476,205.54091976,0.0002493,120]
[401109667,1767936584715,57295.73960244,0.00030136,120]
[401109677,1767936632643,-3521.30514597,0.000125,2]
[401109678,1767936632653,-281.83636833,0.000125,2]
[401109743,1767936638590,-315.16363167,0.000125,2]
[401109745,1767936638599,-300.0,0.00012629,2]
[401109747,1767936638609,-257.90051023,0.00012629,2]
[401109748,1767936638618,-199.35825204,0.0001263,2]
[401109749,1767936638699,-100.64174796,0.0001263,2]
[401109750,1767936638709,-300.0,0.0001263,2]
[401109751,1767936638719,-300.0,0.0001263,2]
[401109752,1767936638728,-300.0,0.0001263,2]
[401109754,1767936638737,-300.0,0.0001263,2]
[401109755,1767936638746,-300.0,0.0001263,2]
[401109756,1767936638755,-300.0,0.0001263,2]
[401109757,1767936638764,-54.63322844,0.0001263,2]
[401109758,1767936638776,-245.36677156,0.0001263,2]
[401109759,1767936638785,-300.0,0.0001263,2]
[401109760,1767936638794,-300.0,0.0001263,2]
[401109761,1767936638803,-300.0,0.0001263,2]
[401109762,1767936638812,-300.0,0.0001263,2]
[401109763,1767936638822,-300.0,0.0001263,2]
[401109764,1767936638831,-300.0,0.0001263,2]
[401109765,1767936638840,-300.0,0.0001263,2]
[401109766,1767936638849,-219.45,0.0001263,2]
[401109767,1767936638858,-19076.95268067,0.0001263,2]
[401109768,1767936638868,-600.0,0.00012882,2]
[401109769,1767936638878,-36722.76602439,0.00013,7]
[401109770,1767936638887,-245.91882744,0.00013,3]
[401109771,1767936638898,-500.0,0.00013273,2]
[401109772,1767936638907,-500.8915397,0.00013273,2]
[401109773,1767936638916,-500.0,0.00013273,2]
[401109774,1767936638925,-500.0,0.00013273,2]
[401109775,1767936638934,-500.0,0.00013273,2]
[401109776,1767936638943,-500.0,0.00013273,2]
[401109777,1767936638952,-500.0,0.00013273,2]
[401109778,1767936638962,-165.59503684,0.00013273,2]
[401109779,1767936638971,-500.0,0.00013273,2]
[401109780,1767936638980,-500.0,0.00013273,2]
[401109781,1767936638989,-500.0,0.00013273,2]
[401109782,1767936638998,-500.0,0.00013273,2]
[401109783,1767936639007,-500.0,0.00013273,2]
[401109784,1767936639016,-500.0,0.00013273,2]
[401109785,1767936639025,-500.0,0.00013273,2]
[401109786,1767936639034,-500.0,0.00013273,2]
[401109787,1767936639044,-500.0,0.00013273,2]
[401109788,1767936639053,-506.27641738,0.00013273,2]
[401109789,1767936639062,-500.0,0.00013689,2]
[401109790,1767936639071,-500.0,0.00013689,2]
[401109791,1767936639080,-500.0,0.00013689,2]
[401109792,1767936639089,-500.0,0.00013689,2]
[401109793,1767936639098,-500.0,0.00013689,2]
[401109794,1767936639108,-500.0,0.00013689,2]
[401109795,1767936639117,-500.0,0.00013689,2]
[401109796,1767936639126,-500.0,0.00013689,2]
[401109797,1767936639135,-500.0,0.00013689,2]
[401109798,1767936639144,-500.0,0.00013689,2]
[401109799,1767936639153,-425.85301515,0.00013689,2]
[401109800,1767936639163,-500.0,0.00013689,2]
[401109801,1767936639172,-500.0,0.00013689,2]
[401109802,1767936639182,-500.0,0.00013689,2]
[401109803,1767936639191,-166.21425466,0.00013689,2]
[401109804,1767936639201,-500.0,0.00013689,2]
[401109805,1767936639213,-556.80060457,0.00013689,2]
[401109806,1767936639223,-500.0,0.00013689,2]
[401109807,1767936639232,-305.63653549,0.00013689,2]
[401109808,1767936639242,-500.0,0.00013689,2]
[401109809,1767936639252,-500.0,0.00013689,2]
[401109810,1767936639262,-3789.85,0.0001369,2]
[401109811,1767936639271,-500.0,0.00013698,2]
[401109812,1767936639280,-500.0,0.00013698,2]
[401109813,1767936639290,-500.0,0.00013698,2]
[401109814,1767936639300,-602.41,0.00013698,2]
[401109815,1767936639309,-602.41,0.00013698,2]
[401109816,1767936639318,-602.41,0.00013698,2]
[401109817,1767936639328,-602.41,0.00013698,2]
[401109818,1767936639337,-500.0,0.00013698,2]
[401109819,1767936639346,-500.0,0.00013698,2]
[401109820,1767936639355,-500.0,0.00013698,2]
[401109821,1767936639365,-500.0,0.00013698,2]
[401109822,1767936639374,-500.0,0.00013698,2]
[401109823,1767936639384,-3056.436798,0.00013699,2]
[401109824,1767936639394,-500.0,0.00013699,2]
[401109825,1767936639403,-500.0,0.00013699,2]
[401109826,1767936639413,-500.0,0.00013699,2]
[401109827,1767936639423,-500.0,0.00013699,2]
[401109828,1767936639432,-567.77888553,0.00013821,2]
[401109829,1767936639441,-1000.0,0.00013821,2]
[401109830,1767936639450,-1000.0,0.00013821,2]
[401109831,1767936639459,-420.0,0.00013855,2]
[401109832,1767936639469,-1742.2158588,0.00013944,2]
[401109833,1767936639478,-720.0,0.0001417,2]
[401109834,1767936639487,-317.47516212,0.00014247,2]
[401109835,1767936639496,-1000.70142733,0.00014247,2]
[401109836,1767936639506,-1000.0,0.00014247,2]
[401109837,1767936639517,-599.9102998,0.00014247,2]
[401109838,1767936639526,-1500.0,0.00014368,2]
[401109839,1767936639536,-1175.78462255,0.00014368,2]
[401109840,1767936639545,-304.32260207,0.00014629,2]
[401109841,1767936639554,-1500.0,0.00014795,2]
[401109842,1767936639564,-192.00163587,0.00014916,2]
[401109843,1767936639574,-1000.0,0.00015,2]
[401109844,1767936639584,-2420.64060424,0.00015,2]
[401109845,1767936639594,-195.979906,0.00015068,2]
[401109846,1767936639604,-587.0,0.000152,2]
[401109847,1767936639615,-2000.0,0.00015342,2]
[401109848,1767936639625,-864.0,0.00015587,2]
[401109849,1767936639634,-2500.0,0.0001589,2]
[401109850,1767936639645,-2052.92932298,0.00016438,2]
[401109851,1767936639655,-350.74469391,0.00016629,2]
[401109852,1767936639666,-823.0,0.00016676,2]
[401109853,1767936639676,-1000.0,0.000169,2]
[401109854,1767936639687,-5000.0,0.00016989,2]
[401109855,1767936639697,-100000.0,0.0001699,2]
[401109856,1767936639707,-111422.20585083,0.00017,2]
[401109857,1767936639717,-167383.21631838,0.0001701,3]
[401109858,1767936639726,-500.0,0.00017144,2]
[401109859,1767936639735,-1000.0,0.00017145,2]
[401109860,1767936639745,-2135.97108924,0.000176,2]
[401109861,1767936639755,-150919.32539666,0.00018,2]
[401109862,1767936639764,-3140.92195732,0.00018,5]
[401109863,1767936639774,-30003.68823938,0.00018,2]
[401109864,1767936639783,-1152.0,0.00018294,2]
[401109865,1767936639794,-195.979906,0.00018493,2]
[401109866,1767936639803,-397.16678575,0.00018629,2]
[401109867,1767936639812,-267.55800831,0.00018832,2]
[401109868,1767936639821,-1000.0,0.0001886,2]
[401109869,1767936639832,-244.0,0.0001886,2]
[401109870,1767936639842,-136040.06671999,0.000189,5]
[401109871,1767936639851,-82223.07254731,0.000189,2]
[401109872,1767936639860,-356.52765787,0.00019,20]
[401109873,1767936639869,-6199.9081243,0.000192,2]
[401109907,1767936640970,-252.89331027,0.000192,2]
[401110057,1767936646666,-6690.79856543,0.000192,2]
[401110058,1767936646675,-498.89487953,0.00019205,5]
[401110059,1767936646685,-1113.1,0.000193,2]
[401110060,1767936646694,-247.0,0.00019863,3]
[401110061,1767936646703,-300.00025089,0.0002,7]
[401110062,1767936646712,-13836.63034682,0.0002,2]
[401110063,1767936646723,-882.2314,0.0002,2]
[401110064,1767936693012,155.0,5e-05,2]
[401110081,1767937831730,-608.0,0.00013271,2]
[401110082,1767937831739,-271.34692643,0.00013272,2]
[401110083,1767937831748,-300.0,0.00013272,2]
[401110084,1767937831757,-300.0,0.00013272,2]
[401110085,1767937831766,-1200.0,0.00013272,2]
[401110086,1767937831775,-191.81021696,0.00013273,2]
[401110087,1767937831783,-153.37341953,0.00013273,2]
[401110088,1767937831793,-500.0,0.00013273,2]
[401110089,1767937831803,-500.0,0.00013273,2]
[401110090,1767937831812,-500.0,0.00013273,2]
[401110091,1767937831821,-500.0,0.00013273,2]
[401110092,1767937831830,-239.98890072,0.00013273,2]
[401110093,1767937831841,-513.15983465,0.00013273,2]
[401110105,1767937837768,-17874.30183971,0.00013273,2]
[401110106,1767937837777,-500.0,0.00013273,2]
[401110107,1767937837786,-500.0,0.00013273,2]
[401110108,1767937837795,-500.0,0.00013273,2]
[401110109,1767937837804,-500.0,0.00013273,2]
[401110110,1767937837815,-300.0,0.00013537,2]
[401110111,1767937837823,-300.0,0.00013537,2]
[401110112,1767937837833,-300.0,0.00013537,2]
[401110113,1767937837842,-300.0,0.00013537,2]
[401110114,1767937837851,-300.0,0.00013537,2]
[401110115,1767937837859,-300.0,0.00013537,2]
[401110116,1767937837869,-300.0,0.00013537,2]
[401110117,1767937837878,-300.0,0.00013537,2]